Cogmind - Beta 14 @@@ ROGUE MODE // 2024.11.05 @ 01:36:32 Player: OctagonalPrism Result: Destroyed by L-61 Swordsman with Power Sword Performance ------------- Evolutions (7) 3500 Regions Visited (22) 4400 Robots Destroyed (280) 1400 Value Destroyed (13682) 13682 Prototype IDs (41) 820 Alien Tech Used (0) 0 Bonus (7387) 7387 TOTAL SCORE: 31189 Bonus ------- High Alert Combat Kills 1674 Follower Combat Kills 2303 Entered Garrisons 800 Used RIF Installer 2500 Aligned with FarCom 300 Friendly Fire -190 Cogmind --------- Core Integrity 0/1300 Matter 233/300 Energy 35/100 System Corruption 19% Temperature Cool (27) Movement Treading (232) Ox1 Location -3/Research Parts ------- > --- POWER (1) -------- (None) > --- PROPULSION (4) --- Medium Treads Advanced Medium Treads > --- UTILITY (13) ----- Advanced Heat Sink Huge Storage Unit Machine Analyzer Improved Targeting Computer Improved Armor Integrity Analyzer Improved Kinecellerator Advanced Force Field Relay Coupler [Swarmer] (34) Relay Coupler [Demolisher] (21) > --- WEAPON (3) ------- Heavy Machine Gun KE Penetrator > --- INVENTORY (25) --- Advanced Heat Sink Advanced Heat Sink Energy Well (350) Matter Compressor (250) EM Disruption Field Antimissile System Relay Coupler [Swarmer] (51) Rocket Launcher Advanced Remote Datajack Peak State ------------ > --- POWER ------------ Particle Reactor > --- PROPULSION ------- Medium Treads Heavy Treads Advanced Medium Treads > --- UTILITY ---------- Advanced Heat Sink Advanced Heat Sink Huge Storage Unit Improved Targeting Computer Advanced Targeting Computer Advanced Targeting Computer Improved Armor Integrity Analyzer Advanced Weapon Cycler EM Disruption Field Antimissile System Relay Coupler [Swarmer] Relay Coupler [Demolisher] Relay Coupler [Hunter] > --- WEAPON ----------- Railgun Railgun Hardcell Cannon > --- INVENTORY -------- Medium Treads Medium Treads Advanced Heat Sink Advanced Heat Sink Large Battery Matter Compressor Authchip [R/Combat] Relay Coupler [Swarmer] Heavy Machine Gun KE Penetrator Rocket Launcher [Rating: 116] Favorites ----------- Power F-cell Engine Engine F-cell Engine Power Core Nuclear Core Reactor Particle Reactor Propulsion Improved Medium Treads Treads Improved Medium Treads Leg Myomer Leg Wheel Armored Wheel Flight Unit Xenon Bombardment Thruster Utility Advanced Heat Sink Device Advanced Heat Sink Storage Large Storage Unit Processor Improved Targeting Computer Hackware Relay Coupler [NC] Protection Improved Utility Shielding Weapon Improved Medium Laser Energy Gun Improved Medium Laser Energy Cannon Firepult Ballistic Gun KE Penetrator Ballistic Cannon Heavy Linear Accelerator Launcher Rocket Launcher Special Weapon Improved Remote Datajack Slashing Weapon Power Sword Piercing Weapon Plasma Lance Build | -11 -10 -10 -9 -9 -9 -8 -8 -8 -8 -7 -7 -7 -6 -5 -5 -5 -5 -5 -4 -3 -3 -3 ------- Run | Yrd Mat Min Mat Min Exi Min Mat Gar Mat Fac Gar Fac Fac Fac Gar Fac Upp Upp Fac Res Gar Res Slots Evolved 14 | . . . 2 . . . 2 . . 2 . . 2 2 . . . . 2 2 . . Power . | . . . . . . . . . . . . . . . . . . . . . . . Propulsion 2 | . . . . . . . . . . 1 . . . . . . . . 1 . . . Utility 11 | . . . 2 . . . 2 . . 1 . . 1 2 . . . . 1 2 . . Weapon 1 | . . . . . . . . . . . . . 1 . . . . . . . . . Parts Attached 285 | 6 4 7 20 . . 1 2 22 6 23 17 21 34 13 16 4 4 . 16 13 37 19 Power 19 | 1 . 1 2 . . . . 2 . 2 2 1 4 . . . . . 1 1 2 . Engine 13 | 1 . . 2 . . . . 1 . 1 2 1 4 . . . . . . 1 . . Core 3 | . . 1 . . . . . 1 . 1 . . . . . . . . . . . . Reactor 3 | . . . . . . . . . . . . . . . . . . . 1 . 2 . Propulsion 53 | 2 . 1 3 . . . 1 2 2 3 2 5 10 . . . . . 3 4 11 4 Treads 28 | 1 . . 2 . . . 1 2 1 3 2 . 7 . . . . . 1 1 3 4 Leg 3 | . . . . . . . . . . . . . . . . . . . . . 3 . Wheel 17 | 1 . 1 1 . . . . . 1 . . 5 3 . . . . . 2 3 . . Hover . | . . . . . . . . . . . . . . . . . . . . . . . Flight 5 | . . . . . . . . . . . . . . . . . . . . . 5 . Utility 97 | 1 3 2 11 . . 1 1 4 2 8 4 6 6 6 5 3 1 . 8 6 9 10 Device 47 | . 2 1 7 . . 1 . 3 2 2 1 4 3 3 1 2 . . 3 2 4 6 Storage 5 | 1 . . 1 . . . . . . . . . . . . . . . 1 1 1 . Processor 9 | . . . . . . . . 1 . 1 . . 1 . . . . . 2 1 1 2 Hackware 16 | . . . . . . . . . . 1 1 2 . 1 3 1 1 . 1 . 3 2 Protection 20 | . 1 1 3 . . . 1 . . 4 2 . 2 2 1 . . . 1 2 . . Artifact . | . . . . . . . . . . . . . . . . . . . . . . . Weapon 116 | 2 1 3 4 . . . . 14 2 10 9 9 14 7 11 1 3 . 4 2 15 5 Energy Gun 28 | 1 1 1 4 . . . . 8 . 3 4 . 1 2 . . . . . . 2 1 Energy Cannon 1 | . . . . . . . . . . . . . . . . . . . 1 . . . Ballistic Gun 25 | 1 . 1 . . . . . 2 2 3 . . 3 1 . . . . 1 . 9 2 Ballistic Cannon 13 | . . . . . . . . . . . 1 4 4 . 1 . . . . 1 1 1 Launcher 13 | . . 1 . . . . . 4 . 1 1 . 1 1 2 . . . . . 2 . Special Weapon 19 | . . . . . . . . . . 1 1 4 2 3 3 . 2 . 1 . 1 1 Impact Weapon . | . . . . . . . . . . . . . . . . . . . . . . . Slashing Weapon 14 | . . . . . . . . . . 2 2 1 3 . 5 1 . . . . . . Piercing Weapon 3 | . . . . . . . . . . . . . . . . . 1 . 1 1 . . Special Melee Weapon . | . . . . . . . . . . . . . . . . . . . . . . . Unidentified Prototypes 4 | . . . 1 . . . . . . . 1 . 1 . . . 1 . . . . . Corrupted Parts 3 | . . . . . . . . . . . . . . . . . . . . . 3 . System Corruption 7 | . . . . . . . . . . . . . . . . . . . . . 7 . Parts Lost 88 | . . 3 2 . . . . 6 . 6 5 5 12 2 . . . . 12 17 6 12 Power 8 | . . 1 . . . . . 1 . . . 1 1 . . . . . 2 1 . 1 Propulsion 25 | . . 1 . . . . . 1 . 1 3 2 4 . . . . . 4 5 1 3 Utility 35 | . . . 2 . . . . 1 . 3 1 1 5 2 . . . . 5 8 2 5 Weapon 20 | . . 1 . . . . . 3 . 2 1 1 2 . . . . . 1 3 3 3 Highest Loss Streak 16 | . . 3 1 . . . . 2 . 4 2 4 9 2 . . . . 4 16 6 7 To Critical Strikes 1 | . . . . . . . . . . . . . 1 . . . . . . . . . Average Slot Usage (%) 91 | . 99 96 97 100 100 100 86 94 100 99 95 93 90 81 90 94 94 90 83 76 75 94 Engine 4 | . 14 3 9 11 11 11 9 6 . 2 7 6 5 5 5 5 5 5 2 3 . . Core 1 | . . 9 . . . . . 2 9 4 . . . . . . . . . . . . Treads 13 | . 14 14 11 11 11 11 9 9 9 18 20 6 12 17 17 17 17 17 9 2 9 14 Wheel 4 | . 14 12 11 11 11 11 9 9 9 3 . 11 6 . . . . . 4 9 . . Device 16 | . 12 11 28 22 22 22 18 17 27 22 7 6 6 9 23 14 11 11 13 17 13 21 Storage 6 | . 14 14 11 11 11 11 9 9 9 7 7 7 6 5 5 5 5 5 5 4 2 4 Processor 9 | . . . . . . . . 8 9 7 15 15 11 5 5 5 5 5 9 9 18 20 Hackware 10 | . . . . . . . . . . 6 7 21 16 5 7 19 23 19 17 12 12 13 Protection 6 | . . 2 2 11 11 11 14 14 9 6 12 1 4 12 8 11 11 11 6 4 . . Energy Gun 4 | . 14 12 20 22 22 22 18 17 2 . 4 . . 4 1 . . . . . . . Ballistic Gun 4 | . 14 14 1 . . . . . 15 12 3 . 1 2 1 . . . . . 7 8 Ballistic Cannon 2 | . . . . . . . . . . . 2 7 5 1 3 5 5 5 2 . 2 3 Slashing Weapon 1 | . . . . . . . . . . . 1 3 4 3 2 4 1 . . . . . Peak Build Rating 116 | 6 8 11 22 20 22 24 28 38 43 52 47 46 68 87 88 86 88 86 91 95 101 116 Average Rating 58 | 5 7 9 19 20 21 22 26 28 41 50 42 42 53 68 81 84 85 84 83 84 84 109 On Entrance 44 | . 6 8 11 20 20 22 24 28 38 42 47 43 40 55 71 86 84 86 83 76 32 101 Naked Turns . | . . . . . . . . . . . . . . . . . . . . . . . Heaviest Build 151 | 13 15 15 43 41 41 41 43 43 47 48 47 48 63 61 87 91 87 87 151 139 124 128 Greatest Support 128 | 20 20 20 23 12 12 12 22 22 12 68 68 42 90 90 90 90 90 90 90 42 126 128 Greatest Overweight (x) 32 | . . . 3 3 3 3 3 3 3 3 1 10 1 . . 1 . . 11 32 3 1 Average Overweight (x) 1 | . . . 2 3 3 3 1 2 3 1 . . . . . . . . 7 6 . . Largest Inventory Capacity 25 | 8 8 8 15 15 15 15 15 15 15 15 15 15 15 15 15 15 15 15 25 25 25 25 Average Capacity 16 | 7 8 8 13 15 15 15 15 15 15 15 15 15 15 15 15 15 15 15 24 24 13 25 Most Carried 15 | 4 6 8 12 10 14 15 15 15 15 15 15 15 15 15 15 15 15 14 14 10 8 14 Average Carried 12 | 2 4 5 9 10 11 14 14 14 14 14 14 14 13 12 13 14 14 14 11 9 4 11 Final Capacity 25 | 8 8 8 15 15 15 15 15 15 15 15 15 15 15 15 15 15 15 15 25 5 25 25 Final Carried 15 | 4 6 8 10 10 14 15 14 15 15 15 15 14 12 11 15 15 14 14 9 5 8 9 Class Distribution -------------------- 27% | Mutant 13% | Skirmisher 13% | Bothacker-Mutant 10% | Scavenger-Gunner 9% | Scavenger-Mutant 6% | Bothacker-Tank 3% | Assassin 3% | Bothacker-Gunner Dominant Class ---------------- Mutant | -10/Materials Scavenger-Mutant | -10/Mines Mutant | -9/Materials Mutant | -9/Mines Mutant | -9/Exiles Skirmisher | -8/Mines Skirmisher | -8/Materials Mutant | -8/Garrison Mutant | -8/Materials Skirmisher | -7/Factory Scavenger-Mutant | -7/Garrison Bothacker-Mutant | -7/Factory Scavenger-Assassin | -6/Factory Mutant | -5/Factory Bothacker-Mutant | -5/Garrison Bothacker-Mutant | -5/Factory Bothacker-Tank | -5/Upper Caves Commander-Tank | -5/Upper Caves Commander-Tank | -4/Factory Scavenger-Mutant | -3/Research Scavenger-Gunner | -3/Garrison Scavenger-Gunner | -3/Research Resources | -11 -10 -10 -9 -9 -9 -8 -8 -8 -8 -7 -7 -7 -6 -5 -5 -5 -5 -5 -4 -3 -3 -3 ----------- Run | Yrd Mat Min Mat Min Exi Min Mat Gar Mat Fac Gar Fac Fac Fac Gar Fac Upp Upp Fac Res Gar Res Matter Collected 8345 | 270 76 112 276 . . 10 20 304 142 620 636 642 527 569 436 499 227 31 366 97 926 1559 Remotely . | . . . . . . . . . . . . . . . . . . . . . . . Salvage Created 10545 | 68 442 218 931 . . 18 57 820 45 1053 648 562 485 605 353 130 52 38 860 737 892 1531 Parts 529 | 3 22 10 63 . . 3 2 34 5 62 43 36 19 35 25 3 2 . 21 34 33 74 Haulers Intercepted 6 | . 1 . 3 . . . . . . 1 . . . . . . . . . . . 1 Recyclers Shooed 8 | . . . 1 . . . . . . 1 . . . 2 . . . . 1 2 . 1 Parts Field Recycled . | . . . . . . . . . . . . . . . . . . . . . . . Retrieved Matter . | . . . . . . . . . . . . . . . . . . . . . . . Parts Self-Destructed 18 | . . . . . . . . . . . . . . . . . 14 4 . . . . Prevented 1 | . . . . . . . . . . . . . . . . . 1 . . . . . Kills | -11 -10 -10 -9 -9 -9 -8 -8 -8 -8 -7 -7 -7 -6 -5 -5 -5 -5 -5 -4 -3 -3 -3 ------- Run | Yrd Mat Min Mat Min Exi Min Mat Gar Mat Fac Gar Fac Fac Fac Gar Fac Upp Upp Fac Res Gar Res Combat Hostiles Destroyed 223 | . 7 6 19 . . . 1 26 1 20 25 9 12 13 23 . 2 1 13 8 16 21 Melee 13 | . . . . . . . . . . . . 1 5 1 1 . . . . 5 . . Guns 115 | . 7 4 19 . . . 1 16 1 18 10 . . 11 . . . . 1 . 12 15 Cannons 41 | . . . . . . . . . . . 4 8 5 1 6 . 2 1 3 2 3 6 AOE 49 | . . 2 . . . . . 9 . 2 11 . 2 . 16 . . . 5 1 1 . Classes Destroyed 20 | 2 4 . 2 . . . . 3 . 4 1 1 . . . . 1 . 1 . . 1 Worker 13 | . . . . . . . . . . 4 . 1 1 1 . . . . 4 1 . 1 Builder 10 | . . . . . . . . . . 2 . 4 . 1 . . . . 1 1 . 1 Tunneler 3 | 1 . . 1 . . 1 . . . . . . . . . . . . . . . . Hauler 6 | . 1 . 3 . . . . . . 1 . . . . . . . . . . . 1 Recycler 8 | 1 1 . . . . . . . . 1 . 2 . . . 1 . . . 2 . . Minesweeper 1 | . . . . . . . . . . . . . . . . . 1 . . . . . Mechanic 1 | . . . . . . . . . . . . 1 . . . . . . . . . . Operator 3 | . . . 1 . . . . . 1 . . . . . . . . . . . . 1 Watcher 12 | . 2 . 3 . . . . . . 1 . 2 . 1 . . . . . 1 . 2 Swarmer 63 | . 3 . 7 . . . . 11 . 3 7 4 . 5 13 . 1 . . 4 4 1 Cutter 3 | . . . . . . . . . . . 3 . . . . . . . . . . . Grunt 89 | . 4 6 6 . . . 1 7 1 8 10 3 7 6 4 . 1 1 8 2 6 8 Brawler 4 | . . . . . . . . . . 1 . . 2 . . . . . . . . 1 Duelist 3 | . . . . . . . . 1 . . . . 1 . 1 . . . . . . . Protector 1 | . . . . . . . . . . . . . . . . . . . . . . 1 Sentry 22 | . . . 6 . . . . 4 . 1 2 . 1 . 2 . . . . . 4 2 Specialist 3 | . . . . . . . . 2 . . . . . . . . . . . 1 . . Hunter 7 | . . . . . . . . 1 . 3 . . . . . . . . 1 . 1 1 Programmer 27 | . . . . . . . . . . 4 3 2 1 2 3 . . . 3 1 1 7 Heavy 1 | . . . . . . . . . . . . . . . . . . . 1 . . . Best Kill Streak 12 | 2 3 2 3 . . 1 1 5 1 11 12 6 4 7 5 1 2 1 9 6 4 3 Combat Bots Only 12 | . 2 2 3 . . . 1 5 1 6 12 3 4 6 5 . 1 1 5 3 4 3 Max Kills in Single Turn 4 | 1 1 1 1 . . 1 1 3 1 3 4 2 2 3 4 1 2 1 3 2 1 2 Gunslinging 1 | . . . . . . . . . . 1 . . . 1 . . . . . . . . Exploded 4 | . . 1 . . . . . 3 . 1 4 . 1 . 4 . . . 1 1 1 . Melee 1 | . . . . . . . . . . . . 1 1 1 1 . . . . 1 . . Uniques/NPCs Destroyed . | . . . . . . . . . . . . . . . . . . . . . . . Combat | -11 -10 -10 -9 -9 -9 -8 -8 -8 -8 -7 -7 -7 -6 -5 -5 -5 -5 -5 -4 -3 -3 -3 -------- Run | Yrd Mat Min Mat Min Exi Min Mat Gar Mat Fac Gar Fac Fac Fac Gar Fac Upp Upp Fac Res Gar Res Hostile Shots Fired 1613 | . 34 33 67 . . . 3 100 11 257 132 80 113 65 53 9 2 4 136 231 133 150 Missed 536 | . 11 10 18 . . . 1 29 6 86 50 19 32 14 12 3 1 3 43 96 48 54 Damage Taken 17333 | . 240 323 532 . . . 35 1055 82 1926 1133 881 1648 967 669 112 36 10 1760 1844 1862 2218 Core 2831 | . 100 74 62 . . . . 132 22 224 147 227 139 101 107 . . 10 157 476 473 380 Absorbed by Shields 1256 | . . . . . . . . . 9 123 . . 375 . 172 41 9 9 166 297 . 55 Reduced by Siege Mode 19 | . . . . . . . . . . . . . . . . . . . . . 9 10 Redirected to Shielding 620 | . . 10 . . . . . 77 . 28 17 . 64 324 . . . . . 100 . . Ignored by Resistances 101 | . . . . . . . . . . . . . . . . . . . . . . 101 Regen/Repaired (Parts) 499 | . . . 119 . . . . . . 259 . 121 . . . . . . . . . . Core Remaining (%) 68 | 100 . 30 . . . 84 . . 72 . . 14 83 . . . . 78 86 . . . Volleys Fired 734 | 10 36 30 64 . . 3 4 67 11 84 53 44 42 26 50 5 5 3 47 6 56 88 Largest 3 | 2 2 2 2 . . 2 2 2 2 2 2 2 2 2 2 1 1 1 2 1 3 3 Hottest 283 | 70 85 85 115 . . 112 112 112 66 89 128 96 103 133 83 83 83 83 283 250 135 138 Shots Fired 1273 | 20 72 42 126 . . 6 8 114 22 141 81 62 57 47 51 5 5 3 47 6 117 241 Gun 904 | 20 72 39 126 . . 6 8 103 22 135 56 . 17 36 1 . . . 8 . 87 168 Cannon 250 | . . . . . . . . . . . 15 49 32 4 13 5 3 2 24 6 25 72 Launcher 57 | . . 3 . . . . . 11 . 5 10 . 2 1 21 . . . . . 4 . Special 62 | . . . . . . . . . . 1 . 13 6 6 16 . 2 1 15 . 1 1 Kinetic 768 | 10 36 27 13 . . . . 2 22 117 37 49 49 20 14 5 3 2 17 5 103 237 Thermal 386 | 10 36 12 113 . . 6 8 101 . 18 34 . . 20 . . . . 15 1 9 3 Explosive 57 | . . 3 . . . . . 11 . 5 10 . 2 1 21 . . . . . 4 . Electromagnetic . | . . . . . . . . . . . . . . . . . . . . . . . Robot Hit Streak 27 | 4 9 7 10 . . 6 4 21 5 12 11 14 16 17 20 . 4 2 9 5 23 27 Robot Miss Streak 9 | 1 6 4 9 . . 1 4 3 3 5 3 3 1 3 2 5 6 1 4 3 5 3 Penetration Max 2 | . . . . . . . . . . 1 1 1 1 1 . . 1 . . . . 2 Secondary Targets 16 | . . 1 1 . . . . 3 . 6 . . . 4 . . . . . . 1 . Max Gunslinging Chain 1 | . . 1 1 . . . . 1 . 1 . . . 1 . . . . . . 1 . Shots Hit Robots 924 | 14 44 28 68 . . 4 4 76 12 91 54 53 62 52 36 1 4 2 37 21 90 171 Core Hits 531 | 4 22 16 32 . . 1 2 39 2 49 56 18 25 34 39 1 2 1 48 18 47 75 Critical Kills 7 | . . . . . . . . . . 2 . . . 1 . . . . . . 1 3 Critical Parts Destroyed 3 | . . . . . . . . . . 2 . . 1 . . . . . . . . . Critical Strikes 57 | . 3 . 1 . . . . 9 . 9 2 9 9 1 1 . . 1 . 1 3 8 Burn 20 | . 3 . 1 . . . . 9 . 5 . . . . . . . . . . 1 1 Destroy 10 | . . . . . . . . . . 4 . . 1 1 . . . . . . 1 3 Blast 19 | . . . . . . . . . . . 2 7 3 . 1 . . 1 . . 1 4 Sever 7 | . . . . . . . . . . . . 2 5 . . . . . . . . . Impale 1 | . . . . . . . . . . . . . . . . . . . . 1 . . Melee Attacks 129 | . . . . . . . . . . 5 7 13 30 19 24 1 . . 3 27 . . Impact . | . . . . . . . . . . . . . . . . . . . . . . . Slashing 99 | . . . . . . . . . . 5 7 13 30 19 24 1 . . . . . . Piercing 30 | . . . . . . . . . . . . . . . . . . . 3 27 . . Sneak Attacks 13 | . . . . . . . . . . . . 5 . 2 . 1 . . . 5 . . Combat Hostiles 2 | . . . . . . . . . . . . 1 . . . . . . . 1 . . Follow-up Attacks . | . . . . . . . . . . . . . . . . . . . . . . . Damage Inflicted 30136 | 143 525 443 1230 . . 71 68 1913 295 3122 2312 1414 2605 1619 2612 132 233 164 1927 1381 2723 5204 Guns 14034 | 143 503 268 1230 . . 71 68 1281 295 2461 1060 . 323 1039 22 . . . 176 . 1657 3437 Cannons 7473 | . . . . . . . . . . . 387 904 1039 97 992 69 233 164 757 413 651 1767 Explosions 6065 | . 22 175 . . . . . 632 . 661 865 . 653 . 1519 . . . 994 129 415 . Melee 2564 | . . . . . . . . . . . . 510 590 483 79 63 . . . 839 . . Ramming . | . . . . . . . . . . . . . . . . . . . . . . . Kinetic 16487 | 57 159 164 61 . . . . 39 295 2289 756 904 1362 580 1014 69 233 164 674 387 2142 5138 Thermal 6143 | 86 344 104 1169 . . 71 68 1242 . 172 691 . . 556 . . . . 1253 155 166 66 Explosive 4920 | . . 175 . . . . . 632 . 661 865 . 653 . 1519 . . . . . 415 . Electromagnetic 22 | . 22 . . . . . . . . . . . . . . . . . . . . . Impact . | . . . . . . . . . . . . . . . . . . . . . . . Slashing 1725 | . . . . . . . . . . . . 510 590 483 79 63 . . . . . . Piercing 839 | . . . . . . . . . . . . . . . . . . . . 839 . . Highest Corruption 19 | . . . . . . . . . . 2 4 6 15 3 2 . . . 6 1 8 19 Average Corruption 4 | . . . . . . . . . . 1 2 3 5 2 1 . . . 3 1 6 8 Corruption Purged 10 | . . . . . . . . . . . . 5 . 3 2 . . . . . . . Corruption Blocked . | . . . . . . . . . . . . . . . . . . . . . . . Effects 196 | . . . . . . . . . . 16 13 25 15 8 2 . . . 14 1 33 69 Message Errors 54 | . . . . . . . . . . 4 4 9 6 4 . . . . 4 . 8 15 Matter Fused 49 | . . . . . . . . . . 6 2 5 2 2 . . . . 4 . 13 15 Heat Flow Errors 24 | . . . . . . . . . . 2 3 2 1 1 1 . . . . . 5 9 Energy Discharges 18 | . . . . . . . . . . 1 2 2 2 . 1 . . . 3 . 2 5 Parts Rejected 1 | . . . . . . . . . . . . . . . . . . . . . . 1 Parts Fused 1 | . . . . . . . . . . 1 . . . . . . . . . . . . Data Loss (minor) 19 | . . . . . . . . . . 1 2 1 2 . . . . . 2 1 1 9 Data Loss (major) 5 | . . . . . . . . . . . . . 1 . . . . . . . 2 2 Misfires 12 | . . . . . . . . . . . . 5 . 1 . . . . . . 2 4 Alerts 3 | . . . . . . . . . . . . 1 1 . . . . . . . . 1 Misdirections 1 | . . . . . . . . . . . . . . . . . . . . . . 1 Weapon Failures 9 | . . . . . . . . . . 1 . . . . . . . . 1 . . 7 Overload Shots . | . . . . . . . . . . . . . . . . . . . . . . . Overflow Damage 851 | . . . . . . . . 10 . 45 55 22 114 20 202 . 39 . 54 133 28 129 Projectiles 569 | . . . . . . . . . . . 18 22 39 . 178 . 39 . 47 69 28 129 Explosions 177 | . . . . . . . . 10 . 45 37 . 53 . 19 . . . 7 6 . . Melee 105 | . . . . . . . . . . . . . 22 20 5 . . . . 58 . . Knockbacks 63 | . . . . . . . . . . . 3 12 12 3 3 1 . 1 2 1 5 20 Impact . | . . . . . . . . . . . . . . . . . . . . . . . Kinetic 57 | . . . . . . . . . . . 2 11 11 3 2 1 . 1 2 1 5 18 Secondary 6 | . . . . . . . . . . . 1 1 1 . 1 . . . . . . 2 Self-Inflicted Damage 387 | . . . . . . . . 7 . 39 41 . 187 25 19 . . . 42 . 27 . Shots 15 | . . . . . . . . 1 . 1 1 . 2 1 1 . . . 6 . 2 . Rammed . | . . . . . . . . . . . . . . . . . . . . . . . Targets Rammed . | . . . . . . . . . . . . . . . . . . . . . . . Kicked . | . . . . . . . . . . . . . . . . . . . . . . . Crushed . | . . . . . . . . . . . . . . . . . . . . . . . Highest Temperature 378 | 100 264 217 360 . . 60 81 138 . 233 171 213 84 90 191 . . . 378 . 235 206 Average Temperature 84 | 36 60 96 112 . . 26 37 59 . 68 19 59 13 21 114 . . . 147 . 64 74 Received Heat Transfer 3432 | . 99 183 168 . . . 18 315 39 479 282 168 420 234 70 36 . 4 268 35 329 285 Effects 7 | . 1 . 4 . . . . . . . . . . . . . . . 2 . . . Shutdowns 1 | . . . . . . . . . . . . . . . . . . . 1 . . . Energy Bleed 3 | . 1 . 1 . . . . . . . . . . . . . . . 1 . . . Matter Decay 1 | . . . 1 . . . . . . . . . . . . . . . . . . . Damage (minor) 2 | . . . 2 . . . . . . . . . . . . . . . . . . . Siege Activations 6 | . . . . . . . . . . . . . . . . . . . . . 2 4 Total Turns 109 | . . . . . . . . . . . . . . . . . . . . . 35 74 Longest Duration 28 | . . . . . . . . . . . . . . . . . . . . . 22 28 Robots Corrupted . | . . . . . . . . . . . . . . . . . . . . . . . Combat Hostiles . | . . . . . . . . . . . . . . . . . . . . . . . Parts Fried . | . . . . . . . . . . . . . . . . . . . . . . . Impact Corruptions . | . . . . . . . . . . . . . . . . . . . . . . . Robots Melted 7 | . . . . . . . . 1 . . . . . . . . . . 4 2 . . Combat Hostiles 5 | . . . . . . . . 1 . . . . . . . . . . 4 . . . Parts Melted 48 | . . 1 6 . . . . 9 . 1 2 . . . . . . . 26 3 . . Heat Transferred 19297 | 259 1110 259 2442 . . 148 148 3367 . 740 1436 . . 874 . . . . 7040 960 360 154 Parts Sabotaged . | . . . . . . . . . . . . . . . . . . . . . . . Parts Stolen . | . . . . . . . . . . . . . . . . . . . . . . . Parts Stripped . | . . . . . . . . . . . . . . . . . . . . . . . Power Chain Reactions . | . . . . . . . . . . . . . . . . . . . . . . . Alert | -11 -10 -10 -9 -9 -9 -8 -8 -8 -8 -7 -7 -7 -6 -5 -5 -5 -5 -5 -4 -3 -3 -3 ------- Run | Yrd Mat Min Mat Min Exi Min Mat Gar Mat Fac Gar Fac Fac Fac Gar Fac Upp Upp Fac Res Gar Res Peak Influence 1168 | 10 256 226 435 136 . 5 70 1168 727 396 1157 619 199 188 1128 895 . . 436 181 991 787 Initial 606 | . 6 97 87 136 . . 1 45 569 310 277 606 78 50 12 592 . . 296 150 48 557 Average 378 | 4 140 151 199 136 . 2 42 562 630 165 660 454 83 102 580 738 . . 305 139 611 597 Maximum Alert Level 4 | . 1 1 2 . . . . 4 3 1 4 2 . . 4 3 . . 2 . 3 3 Low Security (%) 38 | 100 64 87 64 100 . 100 100 21 . 71 . . 100 100 17 . . . . 100 11 . Level 1 17 | . 35 12 30 . . . . 4 7 28 23 21 . . 8 . . . 92 . 2 . Level 2 27 | . . . 5 . . . . 32 59 . 31 77 . . 28 41 . . 7 . 35 88 Level 3 15 | . . . . . . . . 37 32 . 40 . . . 43 58 . . . . 49 11 Level 4 . | . . . . . . . . 3 . . 4 . . . 2 . . . . . . . Level 5 . | . . . . . . . . . . . . . . . . . . . . . . . High Security . | . . . . . . . . . . . . . . . . . . . . . . . Max Security . | . . . . . . . . . . . . . . . . . . . . . . . Squads Dispatched 62 | . 3 1 1 . . . 1 . 3 16 . 4 7 6 . 2 . . 6 4 . 8 Investigation 15 | . 3 1 . . . . . . . 6 . . 2 2 . . . . . . . 1 Extermination 16 | . . . . . . . . . . 4 . 2 1 2 . . . . 3 1 . 3 Reinforcement 16 | . . . 1 . . . 1 . 1 3 . 2 1 . . 1 . . 3 1 . 2 Assault 4 | . . . . . . . . . 1 . . . . . . 1 . . . . . 2 Garrison 11 | . . . . . . . . . 1 3 . . 3 2 . . . . . 2 . . Intercept . | . . . . . . . . . . . . . . . . . . . . . . . Searches Triggered . | . . . . . . . . . . . . . . . . . . . . . . . Construction Impeded 5 | . . . . . . . . . . 2 . 1 1 . . . . . 1 . . . Haulers Reinforced 4 | . . . . . . . . . . 1 . . . . . 1 . . . . . 2 Active Scanning Responses . | . . . . . . . . . . . . . . . . . . . . . . . Cargo Convoy Interrupts . | . . . . . . . . . . . . . . . . . . . . . . . Alert ID Control Effect 11 | . . . . . . . . . . . . . . . . . . . 3 1 . 7 Stealth | -11 -10 -10 -9 -9 -9 -8 -8 -8 -8 -7 -7 -7 -6 -5 -5 -5 -5 -5 -4 -3 -3 -3 --------- Run | Yrd Mat Min Mat Min Exi Min Mat Gar Mat Fac Gar Fac Fac Fac Gar Fac Upp Upp Fac Res Gar Res Distress Signals 21 | . . . 3 . . . 1 . 3 1 . . 1 1 . . . . 6 4 . 1 Communications Jammed . | . . . . . . . . . . . . . . . . . . . . . . . Distress Signals . | . . . . . . . . . . . . . . . . . . . . . . . Times Spotted 394 | . 17 7 35 . . . 4 34 9 28 26 22 19 24 19 6 9 3 34 17 34 47 Peak Tracking Total 10 | . 3 3 3 . . . 3 4 4 7 6 4 6 8 5 3 4 3 5 6 10 5 Tactical Retreats 30 | . 3 . 3 . . . 1 3 . 1 2 1 4 . 1 . . . 2 3 2 4 Traps | -11 -10 -10 -9 -9 -9 -8 -8 -8 -8 -7 -7 -7 -6 -5 -5 -5 -5 -5 -4 -3 -3 -3 ------- Run | Yrd Mat Min Mat Min Exi Min Mat Gar Mat Fac Gar Fac Fac Fac Gar Fac Upp Upp Fac Res Gar Res Traps Triggered 24 | . . . . . . . . 3 . 3 3 2 4 1 6 . . . . . 2 . Indirectly . | . . . . . . . . . . . . . . . . . . . . . . . Trap Hack Attempts . | . . . . . . . . . . . . . . . . . . . . . . . Triggered . | . . . . . . . . . . . . . . . . . . . . . . . Disarmed 1 | . 1 . . . . . . . . . . . . . . . . . . . . . Reprogrammed . | . . . . . . . . . . . . . . . . . . . . . . . Reused . | . . . . . . . . . . . . . . . . . . . . . . . Traps Extracted . | . . . . . . . . . . . . . . . . . . . . . . . Installed . | . . . . . . . . . . . . . . . . . . . . . . . Triggered 1 | . . . . . . . . . . . . . . . . . 1 . . . . . Machines | -11 -10 -10 -9 -9 -9 -8 -8 -8 -8 -7 -7 -7 -6 -5 -5 -5 -5 -5 -4 -3 -3 -3 ---------- Run | Yrd Mat Min Mat Min Exi Min Mat Gar Mat Fac Gar Fac Fac Fac Gar Fac Upp Upp Fac Res Gar Res Machines Disabled 38 | . 3 . . . . . . 4 2 3 5 4 2 2 7 1 . . 2 . 2 1 Max in Single Turn 3 | . 3 . . . . . . 2 . 1 2 . 2 1 1 . . . . . 1 1 Garrison Access 4 | . . . . . . . . . 1 . . 1 1 . . 1 . . . . . . Garrison Relay 10 | . . . . . . . . 2 . . 2 . . . 4 . . . . . 2 . Phase Generator 2 | . . . . . . . . 1 . . 1 . . . . . . . . . . . Machines Repaired . | . . . . . . . . . . . . . . . . . . . . . . . Machines Dismantled . | . . . . . . . . . . . . . . . . . . . . . . . Machines Sabotaged . | . . . . . . . . . . . . . . . . . . . . . . . Overloaded Fab Kills . | . . . . . . . . . . . . . . . . . . . . . . . Hacking | -11 -10 -10 -9 -9 -9 -8 -8 -8 -8 -7 -7 -7 -6 -5 -5 -5 -5 -5 -4 -3 -3 -3 --------- Run | Yrd Mat Min Mat Min Exi Min Mat Gar Mat Fac Gar Fac Fac Fac Gar Fac Upp Upp Fac Res Gar Res Machines Accessed 71 | . 5 1 6 . 2 . 1 1 4 17 1 7 5 6 1 1 1 . 1 4 4 3 Terminals 41 | . 4 . 5 . . . . 1 4 9 1 4 1 4 1 . . . . 1 4 2 Fabricators 6 | . . . . . . . . . . 2 . 1 1 . . . . . . 1 . 1 Repair Stations 5 | . . . 1 . . . . . . 1 . 1 1 . . . . . 1 . . . Recycling Units 6 | . 1 . . . . . . . . 3 . . 1 . . . . . . 1 . . Scanalyzers 2 | . . . . . . . . . . 1 . . . 1 . . . . . . . . Garrison Access 7 | . . . . . . . 1 . . 1 . 1 1 1 . 1 . . . 1 . . Total Hacks 188 | . 16 1 27 . 5 . 2 2 10 36 1 21 15 20 1 1 1 . 1 6 13 9 Successful 102 | . 11 1 17 . 5 . 1 1 4 17 1 8 6 13 1 1 1 . . 4 4 6 Failed 86 | . 5 . 10 . . . 1 1 6 19 . 13 9 7 . . . . 1 2 9 3 Catastrophic 12 | . 1 . 1 . . . . . 2 4 . 2 1 . . . . . . . . 1 Database Lockouts . | . . . . . . . . . . . . . . . . . . . . . . . Manual 65 | . 10 . 10 . 1 . . . 5 13 . 14 2 7 . . . . . 1 . 2 Terminals 123 | . 14 . 19 . . . . 2 10 23 1 16 4 14 1 . . . . 1 13 5 Fabricators 15 | . . . . . . . . . . 4 . 1 4 . . . . . . 2 . 4 Repair Stations 15 | . . . 8 . . . . . . 2 . 3 1 . . . . . 1 . . . Recycling Units 13 | . 2 . . . . . . . . 5 . . 5 . . . . . . 1 . . Scanalyzers 6 | . . . . . . . . . . 1 . . . 5 . . . . . . . . Garrison Access 9 | . . . . . . . 2 . . 1 . 1 1 1 . 1 . . . 2 . . Terminal Hacks 43 | . 4 1 6 . 5 . . 1 2 7 1 3 1 5 1 . 1 . . . 4 1 Record 4 | . . . . . 4 . . . . . . . . . . . . . . . . . Robot Schematic 1 | . . . . . . . . . . 1 . . . . . . . . . . . . Prototype ID Bank 4 | . . . 1 . . . . . . 1 . . . 1 . . . . . . . 1 Open Door 3 | . . 1 . . . . . . . . . . . . . . 1 . . . 1 . Branch Access Points 2 | . . . 1 . . . . . 1 . . . . . . . . . . . . . Emergency Access Points 2 | . . . . . . . . . . . . . . . 1 . . . . . 1 . Terminal Index 4 | . 1 . . . . . . . . 1 . . 1 1 . . . . . . . . Alert Level 2 | . 1 . 1 . . . . . . . . . . . . . . . . . . . Unreport Threat 5 | . . . . . . . . . 1 1 . 2 . 1 . . . . . . . . Locate Traps 4 | . 1 . 1 . . . . . . 1 . . . 1 . . . . . . . . Disarm Traps 1 | . 1 . . . . . . . . . . . . . . . . . . . . . Dispatch Records 1 | . . . 1 . . . . . . . . . . . . . . . . . . . Zone Layout 5 | . . . 1 . . . . . . 2 . 1 . 1 . . . . . . . . Garrison Registry 3 | . . . . . . . . 1 . . 1 . . . . . . . . . 1 . Patrol Navigation 1 | . . . . . . . . . . . . . . . . . . . . . 1 . Derelict Proto ID Bank 1 | . . . . . 1 . . . . . . . . . . . . . . . . . Fabricator Hacks 7 | . . . . . . . . . . 1 . . . . . . . . . 2 . 4 Network Status 1 | . . . . . . . . . . 1 . . . . . . . . . . . . Load Schematic 3 | . . . . . . . . . . . . . . . . . . . . 1 . 2 Build 3 | . . . . . . . . . . . . . . . . . . . . 1 . 2 Repair Station Hacks 12 | . . . 8 . . . . . . 2 . 2 . . . . . . . . . . Scan Component 6 | . . . 4 . . . . . . 1 . 1 . . . . . . . . . . Repair 6 | . . . 4 . . . . . . 1 . 1 . . . . . . . . . . Recycling Unit Hacks 4 | . 1 . . . . . . . . . . . 3 . . . . . . . . . Process 1 | . . . . . . . . . . . . . 1 . . . . . . . . . Report Inventory 2 | . 1 . . . . . . . . . . . 1 . . . . . . . . . Retrieve Matter 1 | . . . . . . . . . . . . . 1 . . . . . . . . . Scanalyzer 3 | . . . . . . . . . . . . . . 3 . . . . . . . . Insert Component 2 | . . . . . . . . . . . . . . 2 . . . . . . . . Analyze 1 | . . . . . . . . . . . . . . 1 . . . . . . . . Garrison Access Hacks 8 | . . . . . . . 1 . . 1 . 1 1 1 . 1 . . . 2 . . Unlock Access 4 | . . . . . . . 1 . . 1 . . . 1 . . . . . 1 . . Seal Access 3 | . . . . . . . . . . . . 1 1 . . 1 . . . . . . Coupler Status 1 | . . . . . . . . . . . . . . . . . . . . 1 . . Unauthorized Hacks 25 | . 6 . 3 . . . . . 2 6 . 2 1 4 . . . . . . . 1 Terminals 21 | . 5 . 3 . . . . . 2 3 . 2 1 4 . . . . . . . 1 Assimilate 1 | . . . . . . . . . . . . . . 1 . . . . . . . . Botnet 16 | . 4 . 2 . . . . . 1 3 . 2 1 2 . . . . . . . 1 Disrupt 1 | . . . 1 . . . . . . . . . . . . . . . . . . . Operators 3 | . 1 . . . . . . . 1 . . . . 1 . . . . . . . . Fabricators . | . . . . . . . . . . . . . . . . . . . . . . . Repair Stations . | . . . . . . . . . . . . . . . . . . . . . . . Recycling Units 4 | . 1 . . . . . . . . 3 . . . . . . . . . . . . Tunnel 4 | . 1 . . . . . . . . 3 . . . . . . . . . . . . Scanalyzers . | . . . . . . . . . . . . . . . . . . . . . . . Garrison Access . | . . . . . . . . . . . . . . . . . . . . . . . Data Cores Recovered 2 | . . . . . . . . . 1 . . . . . . . . . . . . 1 Used 2 | . . . . . . . . . 1 . . . . . . . . . . . . 1 Hacking Detections 51 | . 5 . 4 . . . 1 . 4 12 . 6 4 5 1 . . . 1 2 4 2 Full Trace Events 9 | . 2 . . . . . . . . 3 . . 1 1 . . . . . . 1 1 Feedback Events 1 | . . . . . . . . . . . . . 1 . . . . . . . . . Corruption 1 | . . . . . . . . . . . . . 1 . . . . . . . . . Feedback Blocked . | . . . . . . . . . . . . . . . . . . . . . . . Robot Schematics Acquired 1 | . . . . . . . . . . 1 . . . . . . . . . . . . Robots Built 6 | . . . . . . . . . . . . . . . . . . . . 2 . 4 Authchips 3 | . . . . . . . . . . . . . . . . . . . . 1 . 2 Time 134 | . . . . . . . . . . . . . . . . . . . . 58 . 76 Total Robot Build Rating 18 | . . . . . . . . . . . . . . . . . . . . 6 . 12 Part Schematics Acquired 1 | . . . . . . . . . . . . . . 1 . . . . . . . . Parts Built . | . . . . . . . . . . . . . . . . . . . . . . . Authchips . | . . . . . . . . . . . . . . . . . . . . . . . Time . | . . . . . . . . . . . . . . . . . . . . . . . Total Part Build Rating . | . . . . . . . . . . . . . . . . . . . . . . . Parts Repaired 6 | . . . 4 . . . . . . 1 . 1 . . . . . . . . . . Time 200 | . . . 159 . . . . . . 19 . 22 . . . . . . . . . . Parts Recycled . | . . . . . . . . . . . . . . . . . . . . . . . Recycled Matter 57 | . . . . . . . . . . . . . 57 . . . . . . . . . Retrieved Matter 57 | . . . . . . . . . . . . . 57 . . . . . . . . . Retrieved Components . | . . . . . . . . . . . . . . . . . . . . . . . Parts Scanalyzed 1 | . . . . . . . . . . . . . . 1 . . . . . . . . Part Schematics Acquired 1 | . . . . . . . . . . . . . . 1 . . . . . . . . Parts Damaged 1 | . . . . . . . . . . . . . . 1 . . . . . . . . Bothacking | -11 -10 -10 -9 -9 -9 -8 -8 -8 -8 -7 -7 -7 -6 -5 -5 -5 -5 -5 -4 -3 -3 -3 ------------ Run | Yrd Mat Min Mat Min Exi Min Mat Gar Mat Fac Gar Fac Fac Fac Gar Fac Upp Upp Fac Res Gar Res Used RIF Installer 5 | . . . . . . . . 1 . . 2 . . . 1 . . . . . 1 . Patrol Navigation 1 | . . . . . . . . . . . 1 . . . . . . . . . . . Alert ID Control 1 | . . . . . . . . . . . . . . . 1 . . . . . . . Structural Interface 1 | . . . . . . . . . . . . . . . . . . . . . 1 . Program Shield 1 | . . . . . . . . . . . 1 . . . . . . . . . . . Robots Hacked 39 | . . . . . . . . . . 1 . 9 5 5 5 . 1 1 10 . 1 1 Non-combat 17 | . . . . . . . . . . 1 . 5 2 5 . . 1 . 3 . . . Combat 22 | . . . . . . . . . . . . 4 3 . 5 . . 1 7 . 1 1 Robot Hacks Applied 43 | . . . . . . . . . . 1 . 10 6 5 5 . 1 1 12 . 1 1 parse_system 1 | . . . . . . . . . . . . . . . . . 1 . . . . . no_distress 1 | . . . . . . . . . . . . 1 . . . . . . . . . . hold_bot 1 | . . . . . . . . . . . . . 1 . . . . . . . . . ignore_repairs 1 | . . . . . . . . . . . . 1 . . . . . . . . . . find_fabricator 4 | . . . . . . . . . . 1 . 1 1 . . . . . 1 . . . drop_inventory 3 | . . . . . . . . . . . . . . 2 . . . . 1 . . . locate_stockpiles 1 | . . . . . . . . . . . . . 1 . . . . . . . . . find_recycling 1 | . . . . . . . . . . . . 1 . . . . . . . . . . ignore_parts 4 | . . . . . . . . . . . . 1 . 3 . . . . . . . . find_station 1 | . . . . . . . . . . . . . . . . . . . 1 . . . purge_threat 1 | . . . . . . . . . . . . 1 . . . . . . . . . . find_garrison 1 | . . . . . . . . . . . . . . . . . . . 1 . . . scatter_targeting 1 | . . . . . . . . . . . . . . . . . . 1 . . . . spike_heat 1 | . . . . . . . . . . . . . 1 . . . . . . . . . overload_power 1 | . . . . . . . . . . . . 1 . . . . . . . . . . disable_weapons 2 | . . . . . . . . . . . . . . . . . . . 1 . 1 . reboot_system 1 | . . . . . . . . . . . . . . . . . . . 1 . . . go_dormant 3 | . . . . . . . . . . . . 1 1 . . . . . 1 . . . overwrite_iff 1 | . . . . . . . . . . . . . 1 . . . . . . . . . streamctrl_high 1 | . . . . . . . . . . . . . . . 1 . . . . . . . formatsys_low 2 | . . . . . . . . . . . . . . . . . . . 2 . . . formatsys_high 10 | . . . . . . . . . . . . 2 . . 4 . . . 3 . . 1 Relay Couplers Released 43 | . . . . . . . . 8 3 . 7 . . . 16 . . . . . 9 . Machine Destruction 43 | . . . . . . . . 8 3 . 7 . . . 16 . . . . . 9 . Attached 12 | . . . . . . . . . . . 1 2 . 1 3 . 1 . 1 . 3 . Fabnet Peak Effective % . | . . . . . . . . . . . . . . . . . . . . . . . Robots Rewired 13 | . . . . . . . . 4 . . . . . . 5 . . . . . 4 . Allies Hacked . | . . . . . . . . . . . . . . . . . . . . . . . Hacks Repelled . | . . . . . . . . . . . . . . . . . . . . . . . Allies | -11 -10 -10 -9 -9 -9 -8 -8 -8 -8 -7 -7 -7 -6 -5 -5 -5 -5 -5 -4 -3 -3 -3 -------- Run | Yrd Mat Min Mat Min Exi Min Mat Gar Mat Fac Gar Fac Fac Fac Gar Fac Upp Upp Fac Res Gar Res Total Allies 36 | . . . . . . . . 4 . . . 2 1 1 10 . . . 5 2 6 5 Largest Group 8 | . . . . . . . . 4 4 2 . 2 1 . 8 8 6 5 8 1 3 5 Highest-Rated Group 380 | . . . . . . . . 96 96 48 . 61 29 . 380 380 319 230 349 21 207 135 Highest-Rated Ally 112 | . . . . . . . . 24 24 24 . 32 29 . 99 99 89 89 89 21 112 56 Total Orders . | . . . . . . . . . . . . . . . . . . . . . . . Ally Attacks 359 | . . . . . . . . 17 32 4 . 8 2 . 10 49 32 19 58 2 53 73 Total Damage 9605 | . . . . . . . . 529 858 42 . 208 37 . 195 1000 791 465 1802 48 1857 1773 Kills 77 | . . . . . . . . 7 12 1 . 4 . . 2 8 7 2 9 1 10 14 Allies Corrupted 1 | . . . . . . . . . . . . . . . . . . . . . . 1 Allies Melted . | . . . . . . . . . . . . . . . . . . . . . . . Intel | -11 -10 -10 -9 -9 -9 -8 -8 -8 -8 -7 -7 -7 -6 -5 -5 -5 -5 -5 -4 -3 -3 -3 ------- Run | Yrd Mat Min Mat Min Exi Min Mat Gar Mat Fac Gar Fac Fac Fac Gar Fac Upp Upp Fac Res Gar Res Robot Analysis Total . | . . . . . . . . . . . . . . . . . . . . . . . Derelict Logs Recovered 3 | . . . . . . . . . . . . . . . . . 2 1 . . . . Drone Launches . | . . . . . . . . . . . . . . . . . . . . . . . Drone Recoveries . | . . . . . . . . . . . . . . . . . . . . . . . Exploration | -11 -10 -10 -9 -9 -9 -8 -8 -8 -8 -7 -7 -7 -6 -5 -5 -5 -5 -5 -4 -3 -3 -3 ------------- Run | Yrd Mat Min Mat Min Exi Min Mat Gar Mat Fac Gar Fac Fac Fac Gar Fac Upp Upp Fac Res Gar Res Turns Passed 20048 | 119 614 365 1284 48 314 301 142 1508 482 1947 1251 1375 1290 804 1232 380 1560 204 1154 632 1304 1738 Spaces Moved 10316 | 51 397 241 564 34 231 215 49 739 320 959 570 780 719 355 633 216 957 122 412 255 684 813 Core 34 | 5 . . . . . . . . . . . 1 . . . . . . . 7 21 . Treads 5941 | 44 116 29 44 . . . 36 232 . 587 570 226 395 355 633 216 957 122 107 1 458 813 Legs 138 | . . . . . . . . . . . . . . . . . . . . . 138 . Wheels 4136 | 2 281 212 520 34 231 215 13 507 320 372 . 553 324 . . . . . 305 247 . . Hover . | . . . . . . . . . . . . . . . . . . . . . . . Flight 67 | . . . . . . . . . . . . . . . . . . . . . 67 . Fastest Speed 37 | 50 100 100 115 135 135 135 135 120 135 135 163 93 108 160 160 160 160 160 160 127 37 155 Average Speed 155 | 146 117 107 136 135 135 135 201 163 135 166 180 140 139 160 160 160 160 160 240 189 143 158 Slowest Speed 1650 | 160 160 160 240 135 135 135 225 225 135 250 245 550 240 160 160 240 160 160 255 1650 240 236 Overloaded Moves . | . . . . . . . . . . . . . . . . . . . . . . . Propulsion Burnouts . | . . . . . . . . . . . . . . . . . . . . . . . Robots Hopped 9 | . . . . . . . . . . . . . . . . . . . . . 8 1 Cave-ins Triggered . | . . . . . . . . . . . . . . . . . . . . . . . Exploration Rate (%) 40 | 5 67 62 51 6 61 64 6 86 40 35 48 30 21 10 85 8 97 17 15 10 81 19 Regions Visited 22 Branch Regions 6 Pre-discovered Areas 5 | . 1 . . . 1 . . . . 3 . . . . . . . . . . . . Known Exits Taken 6 | . . . 1 . . . 1 . . 1 . . . 1 . . 1 . . 1 . . Unknown Exits Taken 12 | 1 1 1 . 1 1 1 . . 1 . . 1 1 . . 1 . 1 1 . . . Scrap Searched 6 | . . 1 . . . 1 . . . . . . . . . . 4 . . . . . Spaces Dug 49 | . . . . . . . . 7 . 11 3 . 9 6 3 . . . 3 7 . . Terrain Destroyed 554 | . . 25 . . . . . 105 22 47 102 10 74 13 97 3 1 . 6 9 17 23 Melee 30 | . . . . . . . . . . 4 1 . 9 6 . . . . 3 7 . . Projectile 112 | . . . . . . . . . 22 28 1 10 8 5 2 3 1 . 3 2 6 21 AOE 410 | . . 25 . . . . . 105 . 15 100 . 57 2 95 . . . . . 11 . Terrain Rammed . | . . . . . . . . . . . . . . . . . . . . . . . Walls Destroyed . | . . . . . . . . . . . . . . . . . . . . . . . Machines Disabled . | . . . . . . . . . . . . . . . . . . . . . . . Actions | -11 -10 -10 -9 -9 -9 -8 -8 -8 -8 -7 -7 -7 -6 -5 -5 -5 -5 -5 -4 -3 -3 -3 --------- Run | Yrd Mat Min Mat Min Exi Min Mat Gar Mat Fac Gar Fac Fac Fac Gar Fac Upp Upp Fac Res Gar Res Total 12944 | 75 478 309 954 36 233 220 86 923 350 1154 694 987 899 516 766 241 980 128 527 352 905 1131 Wait 1245 | 1 38 27 290 3 . 1 29 42 5 59 35 121 46 96 31 10 11 4 45 49 99 203 Move 10278 | 50 396 240 563 33 230 214 48 737 319 958 568 779 718 354 632 215 956 121 411 254 671 811 Hop 4 | . . . . . . . . . . . . . . . . . . . . . 3 1 Pick Up 92 | 6 2 4 6 . 3 . 1 10 3 10 6 3 13 3 6 2 2 . 1 1 5 5 Fast Attach 101 | 6 2 2 8 . . 1 . 3 . 2 3 5 15 4 3 1 . . 7 6 28 5 Attach 66 | . . 1 4 . . . 1 7 . 7 3 5 9 4 1 . . . 7 6 4 7 Detach 27 | . 1 . 3 . . 1 . 1 . . 1 2 2 3 2 . . . 3 2 3 3 Swap 118 | . 2 4 8 . . . 1 12 6 14 11 11 10 5 12 3 4 . 2 1 5 7 Drop 81 | 2 1 1 8 . . . 2 5 6 7 7 3 14 2 3 4 2 . 1 . 12 1 Fire 734 | 10 36 30 64 . . 3 4 67 11 84 53 44 42 26 50 5 5 3 47 6 56 88 Melee 129 | . . . . . . . . . . 5 7 13 30 19 24 1 . . 3 27 . . Ram . | . . . . . . . . . . . . . . . . . . . . . . . Kick . | . . . . . . . . . . . . . . . . . . . . . . . Crush . | . . . . . . . . . . . . . . . . . . . . . . . Escape Stasis 15 | . . . . . . . . 6 . 8 . . . . 1 . . . . . . . Rewire 54 | . . . . . . . . 33 . . . 1 . . 1 . . . . . 19 . Trap . | . . . . . . . . . . . . . . . . . . . . . . . Miscellaneous . | . . . . . . . . . . . . . . . . . . . . . . . Route ------- -11/Scrapyard -10/Materials (discovered 4 exits: *Mat x3 / *Min) -10/Mines -9/Materials (discovered 2 exits: *Min x2) -9/Mines -9/Exiles -8/Mines -8/Materials -8/Garrison (discovered 3 exits: *Mat x3) -8/Materials (discovered 4 exits: *Fac x2 / Sto x2) -7/Factory (discovered 2 exits: *Fac / Gar) -7/Garrison (discovered 3 exits: *Fac x3) -7/Factory (discovered 2 exits: *Fac / [*Low]) -6/Factory -5/Factory -5/Garrison (discovered 4 exits: *Fac x3 / *Fac) -5/Factory -5/Upper Caves -5/Upper Caves -4/Factory -3/Research -3/Garrison (discovered 4 exits: *Res x4) -3/Research History --------- Turn | Location | Event 35 | -11/Scrapyard | Discovered new exit (range 15) 120 | -11/Scrapyard | Entered Materials 233 | -10/Materials | Discovered new exit (range 15) 294 | -10/Materials | Discovered new exit (range 6) 304 | -10/Materials | Build established: Mutant 566 | -10/Materials | Discovered new exit (range 14) 693 | -10/Materials | Discovered new exit (range 6) 734 | -10/Materials | Entered Mines 823 | -10/Mines | Core integrity fell below 50% 851 | -10/Mines | Lost 3 parts (1p1n1w) 907 | -10/Mines | Received a Rocket Launcher from a helpful Derelict 1033 | -10/Mines | Discovered new exit (range 14) 1046 | -10/Mines | Met a Derelict shopkeep closing up shop 1099 | -10/Mines | Entered Materials 1099 | -9/Materials | Evolved 2 slots: Utility x2 1143 | -9/Materials | Build established: Scavenger-Mutant 1544 | -9/Materials | Repaired Imp. Terrain Scanner 1583 | -9/Materials | Repaired Particle Charger 1617 | -9/Materials | Repaired Rnf. Ion Engine 1675 | -9/Materials | Repaired Imp. Medium Laser 1803 | -9/Materials | Build established: Mutant 2151 | -9/Materials | Identified exit to Mines 2383 | -9/Materials | Entered Mines 2413 | -9/Mines | Met a Derelict bent on vengeance 2424 | -9/Mines | Deemed a non-threat by the Exiles lab entrance 2426 | -9/Mines | Discovered new exit (range 5) 2431 | -9/Mines | Entered Exiles 2464 | -9/Exiles | Met 8R-AWN 2488 | -9/Exiles | Met EX-HEX 2523 | -9/Exiles | Met EX-BIN 2542 | -9/Exiles | Aligned with FarCom system 2544 | -9/Exiles | Given EX-Vault access code 2579 | -9/Exiles | Opened EX-Vault 2584 | -9/Exiles | Found Firepult 2619 | -9/Exiles | Warned to stay clear of 0b10 Research branches 2661 | -9/Exiles | Met EX-DEC 2667 | -9/Exiles | Learned location of Zion (-6) 2734 | -9/Exiles | Discovered new exit (range 10) 2745 | -9/Exiles | Left Exiles lab with Firepult 2745 | -9/Exiles | Entered Mines 3034 | -8/Mines | Build established: Skirmisher 3036 | -8/Mines | Discovered new exit (range 9) 3046 | -8/Mines | Entered Materials 3046 | -8/Materials | Evolved 2 slots: Utility x2 3186 | -8/Materials | Identified exit to Garrison 3188 | -8/Materials | Entered Garrison 3297 | -8/Garrison | Triggered checkpoint 3352 | -8/Garrison | Garrison Relay disabled 3485 | -8/Garrison | Triggered checkpoint 3490 | -8/Garrison | Build established: Mutant 3491 | -8/Garrison | Triggered checkpoint 3753 | -8/Garrison | Discovered new exit (range 13) 3818 | -8/Garrison | Installed Relay Interface Framework 3832 | -8/Garrison | Triggered checkpoint 3861 | -8/Garrison | Triggered checkpoint 3920 | -8/Garrison | Garrison Relay disabled 3996 | -8/Garrison | Phase Generator disabled 4194 | -8/Garrison | Triggered checkpoint 4453 | -8/Garrison | Discovered new exit (range 12) 4477 | -8/Garrison | Discovered new exit (range 18) 4477 | -8/Garrison | Discovered new exit (range 81) 4477 | -8/Garrison | Discovered new exit (range 72) 4539 | -8/Garrison | Triggered checkpoint 4554 | -8/Garrison | Triggered checkpoint 4603 | -8/Garrison | Build established: Commander-Mutant 4696 | -8/Garrison | Entered Materials 4696 | -8/Materials | Accompanied by 4 allies 4758 | -8/Materials | Identified exit to Storage 4921 | -8/Materials | Met 7R-MNS 4987 | -8/Materials | Discovered new exit (range 14) 5123 | -8/Materials | Discovered new exit (range 8) 5128 | -8/Materials | Garrison activated, responded to threat 5178 | -8/Materials | Entered Factory 5178 | -7/Factory | Accompanied by 2 allies 5178 | -7/Factory | Evolved 2 slots: Propulsion x1, Utility x1 5179 | -7/Factory | Caught up to 7R-MNS 5403 | -7/Factory | Garrison activated, responded to threat 5467 | -7/Factory | Build established: Skirmisher 6257 | -7/Factory | Lost 4 parts (1n2u1w) 6373 | -7/Factory | Discovered new exit (range 11) 6918 | -7/Factory | Repaired Arm. Treads 7123 | -7/Factory | Identified exit to Garrison 7125 | -7/Factory | Entered Garrison 7268 | -7/Garrison | Phase Generator disabled 7465 | -7/Garrison | Triggered checkpoint 7564 | -7/Garrison | Expanded RIF knowledge: Patrol Navigation 7686 | -7/Garrison | Discovered new exit (range 33) 7686 | -7/Garrison | Discovered new exit (range 56) 7686 | -7/Garrison | Discovered new exit (range 51) 7730 | -7/Garrison | Garrison Relay disabled 7768 | -7/Garrison | Build established: Scavenger-Mutant 7784 | -7/Garrison | Triggered checkpoint 7840 | -7/Garrison | Destroyed 12 combat bots 8114 | -7/Garrison | Expanded RIF knowledge: Program Shield 8235 | -7/Garrison | Core integrity fell below 50% 8244 | -7/Garrison | Triggered checkpoint 8282 | -7/Garrison | Garrison Relay disabled 8376 | -7/Garrison | Entered Factory 8578 | -7/Factory | Build established: Bothacker-Mutant 9053 | -7/Factory | Lost 4 parts (1p2n1w) 9435 | -7/Factory | Core integrity fell below 20% 9530 | -7/Factory | Repaired Gauss Cannon 9583 | -7/Factory | Discovered new exit (range 3) 9742 | -7/Factory | Discovered new exit (range 8) 9751 | -7/Factory | Entered another Factory area 9751 | -6/Factory | Evolved 2 slots: Utility x1, Weapon x1 9868 | -6/Factory | Build established: Scavenger-Assassin 10455 | -6/Factory | Build established: Assassin 10634 | -6/Factory | Discovered new exit (range 13) 10634 | -6/Factory | Garrison activated, responded to threat 10833 | -6/Factory | System corruption reached 10% 10880 | -6/Factory | Lost 9 parts (1p2n4u2w) 11041 | -6/Factory | Entered another Factory area 11041 | -5/Factory | Evolved 2 slots: Utility x2 11093 | -5/Factory | Build established: Mutant 11823 | -5/Factory | Identified exit to Garrison 11845 | -5/Factory | Entered Garrison 11890 | -5/Garrison | Expanded RIF knowledge: Alert ID Control 11947 | -5/Garrison | Triggered checkpoint 12027 | -5/Garrison | Triggered checkpoint 12094 | -5/Garrison | Triggered checkpoint 12101 | -5/Garrison | Build established: Skirmisher 12105 | -5/Garrison | Triggered checkpoint 12142 | -5/Garrison | Discovered new exit (range 11) 12189 | -5/Garrison | Triggered checkpoint 12364 | -5/Garrison | Garrison Relay disabled 12606 | -5/Garrison | Discovered new exit (range 10) 12619 | -5/Garrison | Triggered checkpoint 12680 | -5/Garrison | Garrison Relay disabled 12897 | -5/Garrison | Rewired Striker 12900 | -5/Garrison | Rewired Striker 12937 | -5/Garrison | Discovered new exit (range 10) 12949 | -5/Garrison | Garrison Relay disabled 12962 | -5/Garrison | Triggered checkpoint 12975 | -5/Garrison | Garrison Relay disabled 13033 | -5/Garrison | Triggered checkpoint 13053 | -5/Garrison | Discovered new exit (range 5) 13077 | -5/Garrison | Entered Factory 13077 | -5/Factory | Accompanied by 8 allies 13377 | -5/Factory | First assault squad dispatched 13401 | -5/Factory | Build established: Bothacker-Mutant 13422 | -5/Factory | Discovered new exit (range 5) 13457 | -5/Factory | Entered Upper Caves 13457 | -5/Upper Caves | Accompanied by 6 allies 13480 | -5/Upper Caves | Identified exit to Upper Caves 13952 | -5/Upper Caves | Learned Factory stockpile data 14062 | -5/Upper Caves | Attracted the attention of an 0b10 checkpoint 14364 | -5/Upper Caves | Build established: Bothacker-Tank 15017 | -5/Upper Caves | Entered another Upper Caves area 15017 | -5/Upper Caves | Accompanied by 5 allies 15201 | -5/Upper Caves | Discovered new exit (range 8) 15221 | -5/Upper Caves | Entered Factory 15221 | -4/Factory | Accompanied by 5 allies 15221 | -4/Factory | Evolved 2 slots: Propulsion x1, Utility x1 15387 | -4/Factory | Build established: Commander-Tank 15760 | -4/Factory | Lost 4 parts (1p2n1u) 16260 | -4/Factory | Discovered new exit (range 15) 16375 | -4/Factory | Entered Research 16375 | -3/Research | Evolved 2 slots: Utility x2 16818 | -3/Research | Garrison activated, responded to threat 16823 | -3/Research | Build established: Scavenger-Mutant 16843 | -3/Research | Fabricated H-55 Commando? 16919 | -3/Research | Garrison activated, responded to threat 17002 | -3/Research | Identified exit to Garrison 17007 | -3/Research | Entered Garrison 17031 | -3/Garrison | Lost 16 parts (1p5n7u3w) 17153 | -3/Garrison | Core integrity fell below 50% 17157 | -3/Garrison | Triggered checkpoint 17162 | -3/Garrison | Garrison Relay disabled 17163 | -3/Garrison | Found embedded Infiltrators 17207 | -3/Garrison | Lost 6 parts (1n2u3w) 17367 | -3/Garrison | Spotted B-86 Titan 17385 | -3/Garrison | Triggered checkpoint 17386 | -3/Garrison | Rewired B-86 Titan 17393 | -3/Garrison | Triggered checkpoint 17501 | -3/Garrison | Triggered checkpoint 17551 | -3/Garrison | Build established: Scavenger-Gunner 17651 | -3/Garrison | Triggered checkpoint 17705 | -3/Garrison | Expanded RIF knowledge: Structural Interface 17762 | -3/Garrison | Discovered new exit (range 14) 17959 | -3/Garrison | Discovered new exit (range 20) 17959 | -3/Garrison | Discovered new exit (range 70) 17959 | -3/Garrison | Discovered new exit (range 30) 17959 | -3/Garrison | Discovered new exit (range 42) 18163 | -3/Garrison | Triggered checkpoint 18175 | -3/Garrison | Garrison Relay disabled 18311 | -3/Garrison | Entered Research 18311 | -3/Research | Accompanied by 2 allies 18811 | -3/Research | First assault squad dispatched 18962 | -3/Research | Fabricated H-55 Commando (x2) 19010 | -3/Research | Fabricated H-55 Commando (x2) 19642 | -3/Research | Build established: Bothacker-Gunner 19867 | -3/Research | Core integrity fell below 20% 19876 | -3/Research | System corruption reached 10% 19925 | -3/Research | Lost 3 parts (1n1u1w) 20049 | -3/Research | Destroyed by L-61 Swordsman with Power Sword Last Messages --------------- 20027_ Slug penetrates Wall. 20030_ Slug penetrates G-67 Veteran. 20031_ Wall collapses. 20032_ G-67 Veteran suffers critical hit (Burn). 20033_ Particle Reactor destroyed. 20034_ Relay Coupler [Hunter] destroyed. 20034_ System corrupted by crushing effect (+5). 20035_ Slug penetrates Wall. 20037_ Slug penetrates B-74 Champion. 20040_ Core Analyzer destroyed. 20040_ Adv. Weapon Cycler destroyed. 20040_ System corrupted by crushing effect (+2). 20040_ Slug penetrates G-67 Veteran. 20040_ Med. Treads destroyed. 20043_ Slug penetrates I-47 Archangel. 20043_ Adv. Heat Sink destroyed. 20044_ System corrupted: Plasma Rifle rejected. 20046_ Slug penetrates L-61 Swordsman. 20046_ Med. Treads destroyed. 20049_ Slug penetrates G-67 Veteran. Map ----- +----------------------------------------------------+ | ????# ^ [ ! | | ????#/######## = | | ????# #???# | | ????# ########+########## ################## | | ????# ## #??# # ! #????? | | ????# ## #??# # #????? | | ????# ## #??# % + """#????? | | ????# ## ##?# # """#????? | | ????# ## #?# % # """#????? | | ????# ## ##?# #! #????? | | ????# ################### # #????? | | ????######???????# # #############????? | | ?????????????????# ] # # ???????????????? | | ?????????????????# # +????????????????? | | ?????????????????# ! # % #????????????????? | | ?????????????????# # #????????????????? | | ?????????????????# # #????????????????? | | ?????????????????# # [ #???????????????"" | | ?????????????????# # #???????????????"" | | ?????????????????#+#####+### /%#????????????????? | | ?????????????????# ! = #????????????????? | | ?????????????Y???# *!=* !####?????????##### | | ?????????????????# i! %=** #?????????# !! | | ?????????????????# =g%u% !%=##+#?????????# !! | | ????????????????######+#gb#####!# ????????# | | ????????????????# !l@* ##%# ???????# | | ????????????????# = ##[# ??????# | | ????????????????# """ ##%# ###???# | | ????????????????# """ ##%# #"##### | | ????????????????# """ % ##%# # !=]!+ | | ????????????????# ##%########*=!!!##### | | ????????????????# "" ## ######## ]=]%##### | | ????????????????# "" F"" ##*%/[ !%= | | ????????????????# """""" ##+##### ############ | | ????????????????# ] """" #= # #??????????? | | ????????????????# # ! # #??????????? | | ????????????????# ! # w #+######?????? | | ????????????????############## % %! # #?????? | | ????????????# ################ [ # % #?????? | | ????????????# +!%% # #?????? | | ????????????# #################### #?????? | | ????????????#????????????????#####??#!! #?????? | | ????????????????????????????????????#! #?????? | | ????????????????????????????????????########?????? | | ?????????????????????????????????????????????????? | | ?????????????????????????????????????????????????? | | ?????????????????????????????????????????????????? | | ?????????????????????????????????????????????????? | | ?????????????????????????????????????????????????? | | ?????????????????????????????????????????????????? | +----------------------------------------------------+ Best States ------------- Heat Dissipation 122 Energy Generation 23 Energy Capacity 500 Matter Stores 520 Matter Capacity 550 Sight Range 16 Robot Scan Range 14 Terrain Scan Range 16 Terrain Scan Density 10 Base Temperature (-) 200 Armor Coverage 450 Resistance: EM 25 Core Shielding 30 Propulsion Shielding 90 Utility Shielding 66 Point Defense Rating 240 Weapon Cycling 25 Evasion (%) 62 Targeting Accuracy 22 Core Analysis 6 Armor Integrity Analysis 40 Recoil Reduction 4 Particle Charging 15 Kinecelleration 40 Defensive Hacking 14 Relay Coupler Types 3 Relay Coupler Value 82 Authchip Count 2 Item Schematics ----------------- Imp. KE Penetrator | -5/Factory | Scanalyzed Robot Schematics ------------------ H-55 Commando | -7/Factory | Hacked Fabricated ------------ H-55 Commando | x2 | -3/Research | Authchip H-55 Commando | x2 | -3/Research | Authchip H-55 Commando | x2 | -3/Research | Authchip Alien Tech Used ----------------- None Achievements -------------- Error 47 Factory Defaults Generalissimo My Command Is Your Wish Challenges ------------ None Game ------ Seed TransmissionRocketSplitter Manual? 0 Play Time 03:29:40 Cumulative 176.8 hours Start 2024.11.04 @ 22:05:46 End 2024.11.05 @ 01:36:32 Sessions 1 Manual Loads 0 Difficulty Rogue Special Mode None Game No. 141 Rogue 141 Adventurer 0 Explorer 0 Win Type - Total 4 Types 2/0/1/1/0/0/0/0/0 Lore% 62 Gallery% 65 Achievement% 52 Wizard Run 0 Options --------- Layout 2 ASCII 0 Keyboard 0 Movement Numpad Keybinds 0 Fullscreen 1 Font 16/Terminus Map View 55x47 Zoom Use 0% Tactical HUD 1 Map Filters NONE Filters NONE Steam 1 RUN: 1c4758fd-7b19-4397-bc9d-6669e91def70